fUSD/lending_fUSD_20250223
["ID","MTS","AMOUNT","RATE_DAILY","PERIOD"]
[354226954,1740353461629,-1535.67,0.00016602,2]
[354226955,1740353461639,-500.0,0.00016602,2]
[354226956,1740353461648,-151.0,0.00016602,2]
[354226957,1740353461657,-500.0,0.00016602,2]
[354226958,1740353461667,-500.0,0.00016602,2]
[354226959,1740353461677,-527.21,0.00016602,2]
[354226960,1740353461687,-1547.08,0.00016602,2]
[354226961,1740353461697,-500.0,0.00016602,2]
[354226962,1740353461706,-1280.01,0.00016602,2]
[354226963,1740353461715,-1789.28,0.00016602,2]
[354226964,1740353461725,-500.0,0.00016602,2]
[354226965,1740353461735,-2104.09,0.00016602,2]
[354226966,1740353461744,-151.0,0.00016602,2]
[354226967,1740353461753,-3204.29,0.00016602,2]
[354226968,1740353461763,-500.0,0.00016602,2]
[354226969,1740353461772,-700.04,0.00016602,2]
[354226970,1740353461781,-394.67021839,0.00016602,2]
[354226971,1740353461793,-500.0,0.00016602,2]
[354226972,1740353461803,-151.0,0.00016602,2]
[354226973,1740353461812,-811.44,0.00016602,2]
[354226974,1740353461822,-3741.91,0.00016602,2]
[354226975,1740353461832,-500.0,0.00016602,2]
[354226976,1740353461841,-849.84,0.00016602,2]
[354226977,1740353461851,-6894.13,0.00016602,2]
[354226978,1740353461860,-1185.61,0.00016602,2]
[354226979,1740353461869,-2904.93,0.00016602,2]
[354226980,1740353461878,-623.3,0.00016602,2]
[354226981,1740353461888,-510.39,0.00016602,2]
[354226982,1740353461896,-500.0,0.00016602,2]
[354226983,1740353461906,-500.0,0.00016602,2]
[354226984,1740353461915,-2119.38,0.00016602,2]
[354226985,1740353461924,-641.15,0.00016602,2]
[354226986,1740353461934,-2112.78,0.00016602,2]
[354226987,1740353461943,-1083.69,0.00016602,2]
[354226988,1740353461952,-1421.77,0.00016602,2]
[354226989,1740353461961,-500.0,0.00016602,2]
[354226990,1740353461971,-500.0,0.00016602,2]
[354226991,1740353461981,-2508.93,0.00016602,2]
[354226992,1740353461991,-254.230638,0.00016602,2]
[354226993,1740353462000,-1065.63,0.00016602,2]
[354226994,1740353462009,-150.0,0.00016603,2]
[354226995,1740353462019,-439.38,0.00016603,2]
[354226996,1740353462030,-150.0,0.00016603,2]
[354226997,1740353462041,-150.0,0.00016603,2]
[354226998,1740353462051,-439.38,0.00016603,2]
[354226999,1740353462061,-150.0,0.00016603,2]
[354227000,1740353462070,-437.57,0.00016603,2]
[354227001,1740353462079,-150.0,0.00016603,2]
[354227002,1740353462089,-150.0,0.00016603,2]
[354227003,1740353462098,-150.0,0.00016603,2]
[354227004,1740353462107,-327.14,0.00016603,2]
[354227005,1740353462117,-150.0,0.00016603,2]
[354227006,1740353462126,-1000.0,0.00016606,2]
[354227007,1740353462135,-150.0,0.00016616,2]
[354227008,1740353462145,-362.36492487,0.00016621,2]
[354227009,1740353462155,-1000.0,0.00016622,2]
[354227010,1740353462164,-280.44984298,0.00016625,2]
[354227011,1740353462175,-2566.7074404,0.0001663,2]
[354227012,1740353462184,-160.17133937,0.0001663,2]
[354227013,1740353462193,-240.25700906,0.0001663,2]
[354227014,1740353462202,-150.0,0.00016654,2]
[354227015,1740353462211,-150.0,0.00016657,2]
[354227016,1740353462220,-160.17133937,0.00016658,2]
[354227017,1740353462230,-150.0,0.00016659,2]
[354227018,1740353462239,-1000.0,0.00016661,2]
[354227019,1740353462249,-362.36492487,0.00016667,2]
[354227020,1740353462259,-150.0,0.00016673,2]
[354227021,1740353462268,-500.0,0.00016683,2]
[354227022,1740353462278,-500.0,0.00016683,2]
[354227023,1740353462290,-196.03287143,0.00016684,5]
[354227024,1740353462299,-21935.74496779,0.00016684,5]
[354227025,1740353462310,-822.09,0.00016684,2]
[354227026,1740353462319,-500.0,0.00016684,2]
[354227027,1740353462328,-500.0,0.00016684,2]
[354227028,1740353462338,-500.0,0.00016684,2]
[354227029,1740353462348,-242.94400877,0.00016684,2]
[354227030,1740353462357,-500.0,0.00016684,2]
[354227031,1740353462367,-740.11,0.00016684,2]
[354227032,1740353462376,-950.11,0.00016684,2]
[354227033,1740353462386,-500.0,0.00016684,2]
[354227034,1740353462395,-500.0,0.00016684,2]
[354227035,1740353462405,-166.81178217,0.00016684,2]
[354227036,1740353462414,-500.0,0.00016684,2]
[354227037,1740353462423,-500.0,0.00016684,2]
[354227038,1740353462432,-755.07,0.00016684,2]
[354227039,1740353462442,-500.0,0.00016684,2]
[354227040,1740353462451,-500.0,0.00016684,2]
[354227041,1740353462460,-500.0,0.00016684,2]
[354227042,1740353462469,-500.0,0.00016684,2]
[354227043,1740353462479,-500.0,0.00016684,2]
[354227044,1740353462488,-500.0,0.00016684,2]
[354227045,1740353462497,-500.0,0.00016684,2]
[354227046,1740353462507,-944.75,0.00016684,2]
[354227047,1740353462516,-500.0,0.00016684,2]
[354227048,1740353462526,-500.0,0.00016684,2]
[354227049,1740353462535,-500.0,0.00016684,2]
[354227050,1740353462545,-500.0,0.00016684,2]
[354227051,1740353462555,-500.0,0.00016684,2]
[354227052,1740353462564,-500.0,0.00016684,2]
[354227053,1740353462573,-500.0,0.00016684,2]
[354227054,1740353462582,-500.0,0.00016684,2]
[354227055,1740353462592,-626.53,0.00016684,2]
[354227056,1740353462601,-684.82,0.00016684,2]
[354227057,1740353462611,-538.98395638,0.00016684,2]
[354227058,1740353462620,-500.0,0.00016684,2]
[354227059,1740353462630,-500.0,0.00016684,2]
[354227060,1740353462639,-500.0,0.00016684,2]
[354227061,1740353462649,-500.0,0.00016684,2]
[354227062,1740353462659,-500.0,0.00016684,2]
[354227063,1740353462668,-500.0,0.00016684,2]
[354227064,1740353462678,-500.0,0.00016684,2]
[354227065,1740353462687,-817.57,0.00016684,2]
[354227066,1740353462697,-500.0,0.00016684,2]
[354227067,1740353462707,-585.52,0.00016684,2]
[354227068,1740353462716,-511.2,0.00016684,2]
[354227069,1740353462725,-806.31,0.00016684,2]
[354227070,1740353462735,-500.0,0.00016684,2]
[354227071,1740353462744,-500.0,0.00016684,2]
[354227072,1740353462754,-500.0,0.00016684,2]
[354227073,1740353462764,-554.64,0.00016684,2]
[354227074,1740353462773,-500.0,0.00016684,2]
[354227075,1740353462783,-500.0,0.00016684,2]
[354227076,1740353462795,-640.95,0.00016684,2]
[354227077,1740353462805,-500.0,0.00016684,2]
[354227078,1740353462814,-500.0,0.00016684,2]
[354227079,1740353462824,-375.29272178,0.00016684,2]
[354227080,1740353462834,-730.72,0.00016684,2]
[354227081,1740353462844,-500.0,0.00016684,2]
[354227082,1740353462853,-500.0,0.00016684,2]
[354227083,1740353462862,-500.0,0.00016684,2]
[354227084,1740353462872,-500.0,0.00016684,2]
[354227085,1740353462881,-516.69,0.00016684,2]
[354227086,1740353462890,-500.0,0.00016684,2]
[354227087,1740353462900,-500.0,0.00016684,2]
[354227088,1740353462910,-500.0,0.00016684,2]
[354227089,1740353462920,-500.0,0.00016684,2]
[354227090,1740353462929,-500.0,0.00016684,2]
[354227091,1740353462939,-500.0,0.00016684,2]
[354227092,1740353462949,-500.0,0.00016684,2]
[354227093,1740353462959,-500.0,0.00016684,2]
[354227094,1740353462968,-563.73,0.00016684,2]
[354227095,1740353462979,-500.0,0.00016684,2]
[354227096,1740353462990,-500.0,0.00016684,2]
[354227097,1740353463000,-500.0,0.00016684,2]
[354227098,1740353463009,-520.84,0.00016684,2]
[354227099,1740353463019,-500.0,0.00016684,2]
[354227100,1740353463029,-500.0,0.00016684,2]
[354227101,1740353463040,-500.0,0.00016684,2]
[354227102,1740353463050,-500.0,0.00016684,2]
[354227103,1740353463060,-500.0,0.00016684,2]
[354227104,1740353463069,-500.0,0.00016684,2]
[354227105,1740353463079,-500.0,0.00016684,2]
[354227106,1740353463088,-552.39,0.00016684,2]
[354227107,1740353463097,-500.0,0.00016684,2]
[354227108,1740353463107,-500.0,0.00016684,2]
[354227109,1740353463116,-528.39,0.00016684,2]
[354227110,1740353463126,-500.0,0.00016684,2]
[354227111,1740353463135,-500.0,0.00016684,2]
[354227112,1740353463145,-860.18,0.00016684,2]
[354227113,1740353463155,-500.0,0.00016684,2]
[354227114,1740353463164,-500.0,0.00016684,2]
[354227115,1740353463174,-500.0,0.00016684,2]
[354227116,1740353463184,-764.47,0.00016684,2]
[354227117,1740353463194,-500.0,0.00016684,2]
[354227118,1740353463204,-500.0,0.00016684,2]
[354227119,1740353463214,-500.0,0.00016684,2]
[354227120,1740353463225,-500.0,0.00016684,2]
[354227121,1740353463235,-500.0,0.00016684,2]
[354227122,1740353463245,-500.0,0.00016684,2]
[354227123,1740353463254,-1111.83,0.00016684,2]
[354227124,1740353463264,-500.0,0.00016684,2]
[354227125,1740353463273,-500.0,0.00016684,2]
[354227126,1740353463282,-500.0,0.00016684,2]
[354227127,1740353463293,-500.0,0.00016684,2]
[354227128,1740353463303,-871.11,0.00016684,2]
[354227129,1740353463312,-500.0,0.00016684,2]
[354227130,1740353463322,-500.0,0.00016684,2]
[354227131,1740353463332,-500.0,0.00016684,2]
[354227132,1740353463342,-500.0,0.00016684,2]
[354227133,1740353463351,-653.59,0.00016684,2]
[354227134,1740353463361,-500.0,0.00016684,2]
[354227135,1740353463370,-1545.06,0.00016684,2]
[354227136,1740353463379,-500.0,0.00016684,2]
[354227137,1740353463389,-500.0,0.00016684,2]
[354227138,1740353463399,-1353.57,0.00016684,2]
[354227139,1740353463408,-500.0,0.00016684,2]
[354227140,1740353463418,-523.27,0.00016684,2]
[354227141,1740353463428,-500.0,0.00016684,2]
[354227142,1740353463438,-505.40691146,0.00016684,2]
[354227143,1740353463448,-500.0,0.00016684,2]
[354227144,1740353463457,-1352.93,0.00016684,2]
[354227145,1740353463466,-1011.08,0.00016684,2]
[354227146,1740353463476,-1000.26,0.00016684,2]
[354227147,1740353463486,-1500.09,0.00016684,2]
[354227148,1740353463495,-500.0,0.00016684,2]
[354227149,1740353463505,-708.96,0.00016684,2]
[354227150,1740353463514,-500.0,0.00016684,2]
[354227151,1740353463524,-575.78,0.00016684,2]
[354227152,1740353463533,-1015.35,0.00016684,2]
[354227153,1740353463544,-991.38,0.00016684,2]
[354227154,1740353463554,-1549.18,0.00016684,2]
[354227155,1740353463563,-529.22,0.00016684,2]
[354227156,1740353463573,-829.1,0.00016684,2]
[354227157,1740353463582,-500.0,0.00016684,2]
[354227158,1740353463591,-500.0,0.00016684,2]
[354227159,1740353463601,-859.55,0.00016684,2]
[354227160,1740353463610,-1497.27,0.00016684,2]
[354227161,1740353463915,-500.0,0.00016684,2]
[354227162,1740353463926,-500.0,0.00016684,2]
[354227163,1740353463936,-500.0,0.00016684,2]
[354227164,1740353463946,-500.0,0.00016684,2]
[354227165,1740353463957,-1436.02,0.00016684,2]
[354227166,1740353463968,-721.44,0.00016684,2]
[354227167,1740353463979,-769.04,0.00016684,2]
[354227168,1740353463992,-500.0,0.00016684,2]
[354227169,1740353464003,-841.61,0.00016684,2]
[354227170,1740353464013,-1264.07,0.00016684,2]
[354227171,1740353464024,-599.2,0.00016684,2]
[354227172,1740353464036,-1067.3,0.00016684,2]
[354227173,1740353464047,-500.0,0.00016684,2]
[354227174,1740353464058,-177.71,0.00016684,2]
[354227175,1740353464068,-800.15,0.00016684,2]
[354227176,1740353464078,-1000.0,0.00016684,2]
[354227177,1740353464088,-793.84,0.00016684,2]
[354227178,1740353464098,-500.0,0.00016684,2]
[354227179,1740353464108,-500.0,0.00016684,2]
[354227180,1740353464118,-500.0,0.00016684,2]
[354227181,1740353464128,-554.26,0.00016684,2]
[354227182,1740353464138,-878.11,0.00016684,2]
[354227183,1740353464148,-1660.82,0.00016684,2]
[354227184,1740353464158,-1323.9,0.00016684,2]
[354227185,1740353464169,-591.7,0.00016684,2]
[354227186,1740353464179,-500.0,0.00016684,2]
[354227187,1740353464189,-1304.43,0.00016684,2]
[354227188,1740353464199,-500.0,0.00016684,2]
[354227189,1740353464210,-655.13,0.00016684,2]
[354227190,1740353464220,-613.34,0.00016684,2]
[354227191,1740353464230,-819.66,0.00016684,2]
[354227192,1740353464240,-403.44357341,0.00016684,2]
[354227193,1740353464250,-1327.72,0.00016684,2]
[354227194,1740353464260,-601.57,0.00016684,2]
[354227195,1740353464270,-500.0,0.00016684,2]
[354227196,1740353464280,-842.39,0.00016684,2]
[354227197,1740353464292,-500.0,0.00016684,2]
[354227198,1740353464302,-925.77,0.00016684,2]
[354227199,1740353464313,-1006.85,0.00016684,2]
[354227200,1740353464323,-1618.37,0.00016684,2]
[354227201,1740353464333,-744.24,0.00016684,2]
[354227202,1740353464343,-912.53,0.00016684,2]
[354227203,1740353464353,-500.0,0.00016684,2]
[354227204,1740353464362,-946.08,0.00016684,2]
[354227205,1740353464373,-249.017467,0.00016684,2]
[354227206,1740353464383,-500.0,0.00016684,2]
[354227207,1740353464393,-1675.32,0.00016684,2]
[354227208,1740353464403,-1433.69,0.00016684,2]
[354227209,1740353464414,-700.81,0.00016684,2]
[354227210,1740353464424,-1458.26,0.00016684,2]
[354227211,1740353464434,-753.58,0.00016684,2]
[354227212,1740353464443,-707.82,0.00016684,2]
[354227213,1740353464453,-1177.05,0.00016684,2]
[354227214,1740353464463,-751.63,0.00016684,2]
[354227215,1740353464472,-151.0,0.00016684,2]
[354227216,1740353464482,-347.2944,0.00016684,2]
[354227217,1740353464492,-1614.73,0.00016684,2]
[354227218,1740353464502,-500.0,0.00016684,2]
[354227219,1740353464512,-500.0,0.00016684,2]
[354227220,1740353464522,-500.0,0.00016684,2]
[354227221,1740353464531,-500.0,0.00016684,2]
[354227222,1740353464544,-647.68,0.00016684,2]
[354227223,1740353464554,-500.0,0.00016684,2]
[354227224,1740353464564,-1759.43,0.00016684,2]
[354227225,1740353464574,-151.0,0.00016684,2]
[354227226,1740353464583,-500.0,0.00016684,2]
[354227227,1740353464593,-500.0,0.00016684,2]
[354227228,1740353464602,-500.0,0.00016684,2]
[354227229,1740353464612,-797.18,0.00016684,2]
[354227230,1740353464621,-919.37,0.00016684,2]
[354227231,1740353464631,-500.0,0.00016684,2]
[354227232,1740353464640,-841.02,0.00016684,2]
[354227233,1740353464649,-848.57,0.00016684,2]
[354227234,1740353464658,-679.91,0.00016684,2]
[354227235,1740353464667,-500.0,0.00016684,2]
[354227236,1740353464676,-685.45,0.00016684,2]
[354227237,1740353464686,-1150.94,0.00016684,2]
[354227238,1740353464695,-640.58,0.00016684,2]
[354227239,1740353464704,-533.66,0.00016684,2]
[354227240,1740353464714,-500.0,0.00016684,2]
[354227241,1740353464724,-500.0,0.00016684,2]
[354227242,1740353464733,-500.0,0.00016684,2]
[354227243,1740353464743,-500.0,0.00016684,2]
[354227244,1740353464753,-192.31159981,0.00016684,2]
[354227245,1740353464763,-933.73,0.00016684,2]
[354227246,1740353464772,-748.45,0.00016684,2]
[354227247,1740353464782,-2003.28,0.00016684,2]
[354227248,1740353464794,-500.0,0.00016684,2]
[354227249,1740353464803,-691.94,0.00016684,2]
[354227250,1740353464812,-500.0,0.00016684,2]
[354227251,1740353464822,-500.0,0.00016684,2]
[354227252,1740353464831,-727.95,0.00016684,2]
[354227253,1740353464840,-500.0,0.00016684,2]
[354227254,1740353464849,-699.11,0.00016684,2]
[354227255,1740353464858,-749.39,0.00016684,2]
[354227256,1740353464867,-1172.31,0.00016684,2]
[354227257,1740353464877,-544.31,0.00016684,2]
[354227258,1740353464886,-541.75,0.00016684,2]
[354227259,1740353464895,-794.72,0.00016684,2]
[354227260,1740353464904,-500.0,0.00016684,2]
[354227261,1740353464915,-1092.04,0.00016684,2]
[354227262,1740353464924,-1523.18,0.00016684,2]
[354227263,1740353464933,-500.0,0.00016684,2]
[354227264,1740353464942,-500.0,0.00016684,2]
[354227265,1740353464952,-151.0,0.00016684,2]
[354227266,1740353464961,-1814.48,0.00016684,2]
[354227267,1740353464970,-768.27,0.00016684,2]
[354227268,1740353464982,-500.0,0.00016684,2]
[354227269,1740353464992,-909.87,0.00016684,2]
[354227270,1740353465001,-945.62,0.00016684,2]
[354227271,1740353465010,-756.42,0.00016684,2]
[354227272,1740353465020,-500.0,0.00016684,2]
[354227273,1740353465029,-940.07,0.00016684,2]
[354227274,1740353465040,-1635.88,0.00016684,2]
[354227275,1740353465049,-500.0,0.00016684,2]
[354227276,1740353465058,-1091.74,0.00016684,2]
[354227277,1740353465068,-500.0,0.00016684,2]
[354227278,1740353465077,-500.0,0.00016684,2]
[354227279,1740353465087,-500.0,0.00016684,2]
[354227280,1740353465096,-1556.84,0.00016684,2]
[354227281,1740353465107,-500.0,0.00016684,2]
[354227282,1740353465116,-626.62588434,0.00016684,2]
[354227283,1740353465125,-500.0,0.00016684,2]
[354227284,1740353465135,-500.0,0.00016684,2]
[354227285,1740353465144,-500.0,0.00016684,2]
[354227286,1740353465154,-500.0,0.00016684,2]
[354227287,1740353465163,-1812.38,0.00016684,2]
[354227288,1740353465172,-672.23,0.00016684,2]
[354227289,1740353465182,-500.0,0.00016684,2]
[354227290,1740353465192,-500.0,0.00016684,2]
[354227291,1740353465202,-761.96,0.00016684,2]
[354227292,1740353465211,-500.0,0.00016684,2]
[354227293,1740353465222,-500.0,0.00016684,2]
[354227294,1740353465231,-1030.55,0.00016684,2]
[354227295,1740353465241,-500.0,0.00016684,2]
[354227296,1740353465250,-500.0,0.00016684,2]
[354227297,1740353465260,-252.4,0.00016684,2]
[354227298,1740353465269,-1056.73,0.00016684,2]
[354227299,1740353465278,-500.0,0.00016684,2]
[354227300,1740353465289,-500.0,0.00016684,2]
[354227301,1740353465299,-1094.0,0.00016684,2]
[354227302,1740353465309,-500.0,0.00016684,2]
[354227303,1740353465319,-500.0,0.00016684,2]
[354227304,1740353465328,-500.0,0.00016684,2]
[354227305,1740353465339,-702.59,0.00016684,2]
[354227306,1740353465348,-566.73,0.00016684,2]
[354227307,1740353465358,-151.0,0.00016684,2]
[354227308,1740353465368,-1810.65,0.00016684,2]
[354227309,1740353465377,-1780.58,0.00016684,2]
[354227310,1740353465387,-2145.28,0.00016684,2]
[354227311,1740353465396,-500.0,0.00016684,2]
[354227312,1740353465405,-500.0,0.00016684,2]
[354227313,1740353465415,-500.0,0.00016684,2]
[354227314,1740353465425,-365.193291,0.00016684,2]
[354227315,1740353465435,-500.0,0.00016684,2]
[354227316,1740353465445,-500.0,0.00016684,2]
[354227317,1740353465454,-768.28,0.00016684,2]
[354227318,1740353465464,-500.0,0.00016684,2]
[354227319,1740353465474,-500.0,0.00016684,2]
[354227320,1740353465484,-1355.79,0.00016684,2]
[354227321,1740353465493,-3419.84,0.00016684,2]
[354227322,1740353465503,-500.0,0.00016684,2]
[354227323,1740353465513,-500.0,0.00016684,2]
[354227324,1740353465522,-903.44,0.00016684,2]
[354227325,1740353465532,-789.8,0.00016684,2]
[354227326,1740353465542,-500.0,0.00016684,2]
[354227327,1740353465552,-930.11,0.00016684,2]
[354227328,1740353465562,-3374.28,0.00016684,2]
[354227329,1740353465571,-1361.46,0.00016684,2]
[354227330,1740353465580,-500.0,0.00016684,2]
[354227331,1740353465590,-151.0,0.00016684,2]
[354227332,1740353465599,-500.0,0.00016684,2]
[354227333,1740353465609,-861.81,0.00016684,2]
[354227334,1740353465619,-1538.75,0.00016684,2]
[354227335,1740353465630,-500.0,0.00016684,2]
[354227336,1740353465639,-2228.34,0.00016684,2]
[354227337,1740353465648,-1332.93,0.00016684,2]
[354227338,1740353465658,-1249.71,0.00016684,2]
[354227339,1740353465667,-500.0,0.00016684,2]
[354227340,1740353465677,-500.0,0.00016684,2]
[354227341,1740353465688,-3444.02,0.00016684,2]
[354227342,1740353465698,-500.0,0.00016684,2]
[354227343,1740353465708,-4982.05,0.00016684,2]
[354227344,1740353465719,-793.58,0.00016684,2]
[354227345,1740353465729,-4534.88,0.00016684,2]
[354227346,1740353465739,-996.8,0.00016684,2]
[354227347,1740353465750,-1506.19,0.00016684,2]
[354227348,1740353465759,-500.0,0.00016684,2]
[354227349,1740353465769,-500.0,0.00016684,2]
[354227350,1740353465779,-676.59,0.00016684,2]
[354227351,1740353465790,-1565.13,0.00016684,2]
[354227352,1740353465801,-1729.64,0.00016684,2]
[354227353,1740353465810,-2061.82,0.00016684,2]
[354227354,1740353465819,-914.7,0.00016684,2]
[354227355,1740353465829,-1510.76,0.00016684,2]
[354227356,1740353465838,-1515.73,0.00016684,2]
[354227357,1740353465847,-500.0,0.00016684,2]
[354227358,1740353465856,-1772.15,0.00016684,2]
[354227359,1740353465866,-1327.26,0.00016684,2]
[354227360,1740353465875,-500.0,0.00016684,2]
[354227361,1740353465884,-500.0,0.00016684,2]
[354227362,1740353465894,-8381.48,0.00016684,2]
[354227363,1740353465903,-2177.57,0.00016684,2]
[354227364,1740353465912,-988.11,0.00016684,2]
[354227365,1740353465922,-500.0,0.00016684,2]
[354227366,1740353465931,-500.0,0.00016684,2]
[354227367,1740353465941,-3529.02,0.00016684,2]
[354227368,1740353465950,-1863.94,0.00016684,2]
[354227369,1740353465959,-500.0,0.00016684,2]
[354227370,1740353465969,-500.0,0.00016684,2]
[354227371,1740353465978,-500.0,0.00016684,2]
[354227372,1740353465991,-3940.44,0.00016684,2]
[354227373,1740353466001,-509.08,0.00016684,2]
[354227374,1740353466010,-3108.77,0.00016684,2]
[354227375,1740353466019,-4880.47,0.00016684,2]
[354227376,1740353466029,-500.0,0.00016684,2]
[354227377,1740353466040,-425.30673529,0.00016684,2]
[354227378,1740353466050,-151.0,0.00016684,2]
[354227379,1740353466061,-988.44,0.00016684,2]
[354227380,1740353466072,-3416.71,0.00016684,2]
[354227381,1740353466082,-1033.08,0.00016684,2]
[354227382,1740353466092,-711.6,0.00016684,2]
[354227383,1740353466101,-3794.22,0.00016684,2]
[354227384,1740353466111,-151.0,0.00016684,2]
[354227385,1740353466120,-687.99,0.00016684,2]
[354227386,1740353466130,-2183.59,0.00016684,2]
[354227387,1740353466139,-500.0,0.00016684,2]
[354227388,1740353466149,-666.84,0.00016684,2]
[354227389,1740353466159,-151.0,0.00016684,2]
[354227390,1740353466169,-500.0,0.00016684,2]
[354227391,1740353466178,-1360.01,0.00016684,2]
[354227392,1740353466188,-2691.73,0.00016684,2]
[354227393,1740353466197,-151.0,0.00016684,2]
[354227394,1740353466207,-2250.19,0.00016684,2]
[354227395,1740353466216,-1516.02,0.00016684,2]
[354227396,1740353466226,-500.0,0.00016684,2]
[354227397,1740353466235,-4047.89,0.00016684,2]
[354227398,1740353466245,-741.57,0.00016684,2]
[354227399,1740353466254,-3043.56,0.00016684,2]
[354227400,1740353466263,-962.95,0.00016684,2]
[354227401,1740353466273,-500.0,0.00016684,2]
[354227402,1740353466282,-3262.59,0.00016684,2]
[354227403,1740353466359,-3135.8,0.00016684,2]
[354227404,1740353466369,-1117.59,0.00016684,2]
[354227405,1740353466378,-11350.88,0.00016684,2]
[354227406,1740353466388,-2070.05,0.00016684,2]
[354227407,1740353466397,-151.0,0.00016684,2]
[354227408,1740353466407,-684.7,0.00016684,2]
[354227409,1740353466416,-500.0,0.00016684,2]
[354227410,1740353466425,-2288.44,0.00016684,2]
[354227411,1740353466434,-1698.24,0.00016684,2]
[354227412,1740353466444,-151.0,0.00016684,2]
[354227413,1740353466453,-2235.47,0.00016684,2]
[354227414,1740353466462,-688.3,0.00016684,2]
[354227415,1740353466471,-619.5,0.00016684,2]
[354227416,1740353466481,-500.0,0.00016684,2]
[354227417,1740353466490,-854.83,0.00016684,2]
[354227418,1740353466499,-1443.32,0.00016684,2]
[354227419,1740353466508,-2374.82,0.00016684,2]
[354227420,1740353466518,-3635.87,0.00016684,2]
[354227421,1740353466527,-2655.28,0.00016684,2]
[354227422,1740353466536,-2119.63,0.00016684,2]
[354227423,1740353466548,-3247.38,0.00016684,2]
[354227424,1740353466557,-590.04,0.00016684,2]
[354227425,1740353466566,-1084.51,0.00016684,2]
[354227426,1740353466575,-3009.5,0.00016684,2]
[354227427,1740353466585,-151.0,0.00016684,2]
[354227428,1740353466595,-1193.14,0.00016684,2]
[354227429,1740353466604,-2121.71,0.00016684,2]
[354227430,1740353466614,-9038.34,0.00016684,2]
[354227431,1740353466623,-649.86,0.00016684,2]
[354227432,1740353466633,-151.0,0.00016684,2]
[354227433,1740353466642,-500.0,0.00016684,2]
[354227434,1740353466651,-500.0,0.00016684,2]
[354227435,1740353466660,-500.0,0.00016684,2]
[354227436,1740353466669,-4001.14,0.00016684,2]
[354227437,1740353466678,-2348.73,0.00016684,2]
[354227438,1740353466687,-1481.92,0.00016684,2]
[354227439,1740353466697,-2467.86,0.00016684,2]
[354227440,1740353466711,-1690.11,0.00016684,2]
[354227441,1740353466720,-464.49324408,0.00016684,2]
[354227442,1740353466729,-2824.09,0.00016684,2]
[354227443,1740353466738,-151.255159,0.00016684,2]
[354227444,1740353466748,-641.2,0.00016684,2]
[354227445,1740353466757,-1352.7,0.00016684,2]
[354227446,1740353466766,-5740.59,0.00016684,2]
[354227447,1740353466775,-500.0,0.00016684,2]
[354227448,1740353466784,-500.0,0.00016684,2]
[354227449,1740353466796,-3769.92,0.00016684,2]
[354227450,1740353466806,-2651.04,0.00016684,2]
[354227451,1740353466815,-2054.97,0.00016684,2]
[354227452,1740353466824,-500.0,0.00016684,2]
[354227453,1740353466835,-2474.68,0.00016684,2]